Cogmind - Beta 13 @@@ ROGUE MODE // 2024.04.12 @ 10:05:24 Player: SYPIAC Result: Destroyed by G-47 Trooper with Particle Gun Performance ------------- Evolutions (2) 1000 Regions Visited (3) 600 Robots Destroyed (41) 205 Value Destroyed (1143) 1143 Prototype IDs (5) 100 Alien Tech Used (0) 0 Bonus (0) 0 TOTAL SCORE: 3048 Bonus ------- None Cogmind --------- Core Integrity 0/550 Matter 268/300 Energy 90/250 System Corruption 0% Temperature Cool (9) Movement Walking (190) Ox1 Location -8/Materials Parts ------- > --- POWER (1) -------- Ion Engine > --- PROPULSION (4) --- Aluminum Leg > --- UTILITY (4) ------ Improved Heat Sink Core Shielding Backup Plating I Improved Light Armor Plating > --- WEAPON (2) ------- Advanced Beam Cannon > --- INVENTORY (5) ---- Backup Laser I Backup Laser I Heavy Particle Cannon Plasma Cutter Great Maul Peak State ------------ > --- POWER ------------ Cooled Ion Engine > --- PROPULSION ------- Aluminum Leg Aluminum Leg Aluminum Leg Improved Aluminum Leg > --- UTILITY ---------- Large Storage Unit Sensor Array Improved Signal Interpreter Hardened Light Armor Plating > --- WEAPON ----------- Heavy Particle Cannon Enhanced Autogun > --- INVENTORY -------- Cooled Ion Engine Cooled Ion Engine Improved Heat Sink Medium Storage Unit Terrain Scanner Light Armor Plating Shock Rifle Advanced Beam Cannon Enhanced Autogun Enhanced Autogun Grenade Launcher Plasma Cutter Hammer [Rating: 25] Favorites ----------- Power Light Ion Engine Engine Light Ion Engine Propulsion Aluminum Leg Leg Aluminum Leg Hover Unit Backup Propulsion I Utility Sensor Array Device Sensor Array Storage Large Storage Unit Processor Transport Network Coupler Protection Hardened Light Armor Plating Weapon Advanced Beam Cannon Energy Gun EM Pulse Gun Energy Cannon Advanced Beam Cannon Ballistic Gun Assault Rifle Impact Weapon Hammer Build | -11 -10 -9 -8 ------- Run | Yrd Mat Mat Mat Slots Evolved 4 | . . 2 2 Power . | . . . . Propulsion 2 | . . 2 . Utility 2 | . . . 2 Weapon . | . . . . Parts Attached 65 | . 16 27 22 Power 7 | . 4 2 1 Engine 7 | . 4 2 1 Core . | . . . . Reactor . | . . . . Propulsion 14 | . 2 5 7 Treads . | . . . . Leg 14 | . 2 5 7 Wheel . | . . . . Hover . | . . . . Flight . | . . . . Utility 19 | . 6 5 8 Device 7 | . 2 3 2 Storage 2 | . 1 1 . Processor 4 | . 2 . 2 Hackware . | . . . . Protection 6 | . 1 1 4 Artifact . | . . . . Weapon 25 | . 4 15 6 Energy Gun 5 | . 2 2 1 Energy Cannon 8 | . . 5 3 Ballistic Gun 6 | . 1 4 1 Ballistic Cannon . | . . . . Launcher . | . . . . Special Weapon . | . . . . Impact Weapon 6 | . 1 4 1 Slashing Weapon . | . . . . Piercing Weapon . | . . . . Special Melee Weapon . | . . . . Unidentified Prototypes 2 | . . 2 . Parts Lost 22 | . 3 . 19 Power 4 | . 2 . 2 Propulsion 8 | . . . 8 Utility 6 | . . . 6 Weapon 4 | . 1 . 3 Highest Loss Streak 10 | . 2 . 10 To Critical Strikes . | . . . . Average Slot Usage (%) 96 | . 98 100 86 Engine 11 | . 13 11 8 Leg 34 | . 28 44 28 Device 7 | . 4 9 7 Storage 11 | . 14 11 6 Processor 4 | . 7 . 6 Protection 3 | . 1 1 9 Energy Gun 4 | . 8 2 1 Energy Cannon 6 | . . 13 6 Ballistic Gun 10 | . 17 3 6 Impact Weapon 2 | . 1 3 1 Naked Turns 10 | . . . 10 Heaviest Build 43 | 11 22 37 43 Greatest Support 43 | 20 20 43 43 Greatest Overweight (x) 2 | . 1 . 2 Average Overweight (x) . | . . . . Largest Inventory Capacity 15 | . 10 15 15 Average Capacity 11 | . 8 13 12 Most Carried 15 | . 10 15 14 Average Carried 9 | . 7 12 10 Final Capacity 15 | 8 10 15 5 Final Carried 15 | 6 10 15 5 Class Distribution -------------------- 63% | Scavenger-Mutant 36% | Mutant Dominant Class ---------------- Mutant | -10/Materials Scavenger-Mutant | -9/Materials Scavenger-Mutant | -8/Materials Resources | -11 -10 -9 -8 ----------- Run | Yrd Mat Mat Mat Matter Collected 1036 | 191 344 190 311 Remotely . | . . . . Salvage Created 1675 | . 621 443 611 Parts 78 | . 32 18 28 Haulers Intercepted 4 | . 2 1 1 Recyclers Shooed . | . . . . Parts Field Recycled . | . . . . Retrieved Matter . | . . . . Parts Self-Destructed . | . . . . Prevented . | . . . . Kills | -11 -10 -9 -8 ------- Run | Yrd Mat Mat Mat Combat Hostiles Destroyed 27 | . 12 6 9 Melee 3 | . . 2 1 Guns 16 | . 12 . 4 Cannons 5 | . . 1 4 Classes Destroyed 8 | . 6 2 . Worker 2 | . 1 1 . Hauler 4 | . 2 1 1 Recycler 1 | . . 1 . Operator 1 | . 1 . . Watcher 6 | . 2 2 2 Swarmer 3 | . 3 . . Grunt 20 | . 9 5 6 Sentry 4 | . . 1 3 Best Kill Streak 5 | . 3 5 3 Combat Bots Only 3 | . 3 3 3 Max Kills in Single Turn 2 | . 2 1 1 Gunslinging . | . . . . Exploded . | . . . . Melee 1 | . . 1 1 Uniques/NPCs Destroyed . | . . . . Combat | -11 -10 -9 -8 -------- Run | Yrd Mat Mat Mat Hostile Shots Fired 307 | . 70 31 206 Missed 52 | . 11 6 35 Damage Taken 3691 | . 653 322 2716 Core 801 | . 189 48 564 Absorbed by Shields . | . . . . Redirected to Shielding 21 | . . . 21 Core Remaining (%) 70 | 100 24 88 . Volleys Fired 123 | . 66 14 43 Largest 2 | . 2 2 2 Hottest 136 | . 90 136 118 Shots Fired 225 | . 119 28 78 Gun 174 | . 119 6 49 Cannon 51 | . . 22 29 Launcher . | . . . . Special . | . . . . Kinetic 118 | . 84 . 34 Thermal 77 | . 9 25 43 Explosive . | . . . . Electromagnetic 30 | . 26 3 1 Robot Hit Streak 29 | . 12 15 29 Robot Miss Streak 3 | . 3 3 2 Penetration Max . | . . . . Secondary Targets 2 | . . . 2 Max Gunslinging Chain 1 | . . . 1 Shots Hit Robots 177 | . 80 30 67 Core Hits 60 | . 31 6 23 Critical Kills 3 | . 2 1 . Critical Parts Destroyed 2 | . . 2 . Critical Strikes 6 | . 3 3 . Destroy 2 | . 2 . . Corrupt 1 | . 1 . . Smash 3 | . . 3 . Melee Attacks 36 | . 6 24 6 Impact 36 | . 6 24 6 Slashing . | . . . . Piercing . | . . . . Sneak Attacks 2 | . . 2 . Combat Hostiles . | . . . . Follow-up Attacks . | . . . . Damage Inflicted 2917 | . 932 725 1260 Guns 1533 | . 877 13 643 Cannons 894 | . . 393 501 Explosions 36 | . 36 . . Melee 418 | . 17 319 82 Ramming 36 | . 2 . 34 Kinetic 1122 | . 620 . 502 Thermal 1129 | . 99 406 624 Explosive . | . . . . Electromagnetic 212 | . 194 . 18 Impact 418 | . 17 319 82 Slashing . | . . . . Piercing . | . . . . Highest Corruption . | . . . . Average Corruption . | . . . . Corruption Purged . | . . . . Corruption Blocked . | . . . . Overload Shots . | . . . . Overflow Damage 132 | . . 132 . Projectiles . | . . . . Explosions . | . . . . Melee 132 | . . 132 . Knockbacks 2 | . . . 2 Impact 2 | . . . 2 Kinetic . | . . . . Secondary . | . . . . Self-Inflicted Damage . | . . . . Shots . | . . . . Rammed . | . . . . Targets Rammed 6 | . 1 . 5 Kicked 6 | . 1 . 5 Crushed . | . . . . Highest Temperature 544 | . 320 307 544 Average Temperature 108 | . 103 104 114 Received Heat Transfer 2205 | . 324 171 1710 Effects 7 | . . . 7 Shutdowns 1 | . . . 1 Energy Bleed 2 | . . . 2 Interference 3 | . . . 3 Damage (minor) 1 | . . . 1 Siege Activations . | . . . . Robots Corrupted . | . . . . Combat Hostiles . | . . . . Parts Fried 6 | . . 6 . Impact Corruptions 4 | . . 4 . Robots Melted 1 | . . 1 . Combat Hostiles 1 | . . 1 . Parts Melted 4 | . . 1 3 Heat Transferred 2307 | . 235 740 1332 Parts Sabotaged . | . . . . Parts Stolen . | . . . . Parts Stripped . | . . . . Power Chain Reactions 1 | . 1 . . Alert | -11 -10 -9 -8 ------- Run | Yrd Mat Mat Mat Peak Influence 190 | . 175 190 187 Initial 24 | . . . 24 Average 70 | . 48 74 105 Maximum Alert Level . | . . . . Low Security (%) 100 | . 100 100 100 Level 1 . | . . . . Level 2 . | . . . . Level 3 . | . . . . Level 4 . | . . . . Level 5 . | . . . . High Security . | . . . . Max Security . | . . . . Squads Dispatched 9 | . 5 1 3 Investigation 7 | . 4 1 2 Extermination . | . . . . Reinforcement 2 | . 1 . 1 Assault . | . . . . Garrison . | . . . . Intercept . | . . . . Searches Triggered . | . . . . Construction Impeded . | . . . . Haulers Reinforced . | . . . . Active Scanning Responses . | . . . . Cargo Convoy Interrupts . | . . . . Stealth | -11 -10 -9 -8 --------- Run | Yrd Mat Mat Mat Distress Signals 4 | . . 2 2 Communications Jammed . | . . . . Distress Signals . | . . . . Times Spotted 62 | . 23 17 22 Peak Tracking Total 8 | . 4 3 8 Tactical Retreats 1 | . . . 1 Traps | -11 -10 -9 -8 ------- Run | Yrd Mat Mat Mat Traps Triggered 3 | . 3 . . Indirectly . | . . . . Trap Hack Attempts . | . . . . Triggered . | . . . . Disarmed . | . . . . Reprogrammed . | . . . . Reused . | . . . . Traps Extracted . | . . . . Installed . | . . . . Triggered . | . . . . Machines | -11 -10 -9 -8 ---------- Run | Yrd Mat Mat Mat Machines Disabled . | . . . . Max in Single Turn . | . . . . Machines Repaired . | . . . . Machines Dismantled . | . . . . Machines Sabotaged . | . . . . Overloaded Fab Kills . | . . . . Hacking | -11 -10 -9 -8 --------- Run | Yrd Mat Mat Mat Machines Accessed 16 | . 7 4 5 Terminals 12 | . 6 3 3 Fabricators . | . . . . Repair Stations 1 | . . . 1 Recycling Units 2 | . 1 . 1 Scanalyzers 1 | . . 1 . Garrison Access . | . . . . Total Hacks 51 | . 22 14 15 Successful 29 | . 11 10 8 Failed 22 | . 11 4 7 Catastrophic 3 | . 2 1 . Database Lockouts . | . . . . Manual 25 | . 14 2 9 Terminals 39 | . 21 8 10 Fabricators . | . . . . Repair Stations 4 | . . . 4 Recycling Units 2 | . 1 . 1 Scanalyzers 6 | . . 6 . Garrison Access . | . . . . Terminal Hacks 12 | . 6 3 3 Robot Analysis 1 | . . . 1 Prototype ID Bank 2 | . 1 1 . Emergency Access Points 1 | . . 1 . Alert Level 1 | . . 1 . Unreport Threat 2 | . 2 . . Locate Traps 1 | . . . 1 Dispatch Records 1 | . 1 . . Hauler Manifests 1 | . 1 . . Registered Components 1 | . 1 . . Zone Layout 1 | . . . 1 Fabricator Hacks . | . . . . Repair Station Hacks 2 | . . . 2 Refit 2 | . . . 2 Recycling Unit Hacks 2 | . 1 . 1 Retrieve Components 2 | . 1 . 1 Scanalyzer 6 | . . 6 . Insert Component 3 | . . 3 . Analyze 3 | . . 3 . Garrison Access Hacks . | . . . . Unauthorized Hacks 7 | . 4 1 2 Terminals 7 | . 4 1 2 Track 2 | . 1 . 1 Botnet 5 | . 3 1 1 Fabricators . | . . . . Repair Stations . | . . . . Recycling Units . | . . . . Scanalyzers . | . . . . Garrison Access . | . . . . Data Cores Recovered . | . . . . Used . | . . . . Hacking Detections 14 | . 7 4 3 Full Trace Events 4 | . 1 1 2 Feedback Events . | . . . . Feedback Blocked . | . . . . Robot Schematics Acquired . | . . . . Robots Built . | . . . . Authchips . | . . . . Time . | . . . . Total Robot Build Rating . | . . . . Part Schematics Acquired 3 | . . 3 . Parts Built . | . . . . Authchips . | . . . . Time . | . . . . Total Part Build Rating . | . . . . Parts Repaired . | . . . . Time . | . . . . Parts Recycled . | . . . . Recycled Matter . | . . . . Retrieved Matter . | . . . . Retrieved Components 3 | . 1 . 2 Parts Scanalyzed 3 | . . 3 . Part Schematics Acquired 3 | . . 3 . Parts Damaged . | . . . . Bothacking | -11 -10 -9 -8 ------------ Run | Yrd Mat Mat Mat Used RIF Installer . | . . . . Robots Hacked . | . . . . Non-combat . | . . . . Combat . | . . . . Robot Hacks Applied . | . . . . Relay Couplers Released . | . . . . Fabnet Peak Effective % . | . . . . Robots Rewired . | . . . . Allies Hacked . | . . . . Hacks Repelled . | . . . . Allies | -11 -10 -9 -8 -------- Run | Yrd Mat Mat Mat Total Allies . | . . . . Largest Group . | . . . . Highest-Rated Group . | . . . . Highest-Rated Ally . | . . . . Total Orders . | . . . . Ally Attacks . | . . . . Total Damage . | . . . . Kills . | . . . . Allies Corrupted . | . . . . Allies Melted . | . . . . Intel | -11 -10 -9 -8 ------- Run | Yrd Mat Mat Mat Robot Analysis Total 1 | . . . 1 Derelict Logs Recovered . | . . . . Drone Launches . | . . . . Drone Recoveries . | . . . . Exploration | -11 -10 -9 -8 ------------- Run | Yrd Mat Mat Mat Turns Passed 2555 | . 1065 940 550 Spaces Moved 1472 | 1 589 602 280 Core 22 | . . . 22 Treads . | . . . . Legs 1444 | 1 589 602 252 Wheels . | . . . . Hover 6 | . . . 6 Flight . | . . . . Fastest Speed 50 | 120 120 120 50 Average Speed 119 | 120 121 120 116 Slowest Speed 260 | 120 190 120 260 Overloaded Moves . | . . . . Propulsion Burnouts . | . . . . Robots Hopped . | . . . . Cave-ins Triggered . | . . . . Exploration Rate (%) 38 | 2 84 38 29 Regions Visited 3 Branch Regions . Pre-discovered Areas . | . . . . Known Exits Taken . | . . . . Unknown Exits Taken 3 | 1 1 1 . Scrap Searched . | . . . . Spaces Dug 8 | . 2 6 . Terrain Destroyed 15 | . 6 6 3 Melee 8 | . 2 6 . Projectile 3 | . . . 3 AOE 4 | . 4 . . Terrain Rammed . | . . . . Walls Destroyed . | . . . . Machines Disabled . | . . . . Actions | -11 -10 -9 -8 --------- Run | Yrd Mat Mat Mat Total 1989 | . 817 747 425 Wait 222 | . 116 50 56 Move 1469 | . 588 601 280 Hop . | . . . . Pick Up 29 | . 12 13 4 Fast Attach 17 | . 3 5 9 Attach 10 | . 3 2 5 Detach 2 | . . 1 1 Swap 38 | . 10 20 8 Drop 37 | . 12 17 8 Fire 123 | . 66 14 43 Melee 36 | . 6 24 6 Ram . | . . . . Kick 6 | . 1 . 5 Crush . | . . . . Escape Stasis . | . . . . Rewire . | . . . . Trap . | . . . . Miscellaneous . | . . . . Route ------- -11/Scrapyard -10/Materials (discovered 4 exits: *Mat x3 / [*Min]) -9/Materials -8/Materials (discovered 2 exits: [*Fac] / [*Sto]) History --------- Turn | Location | Event 1 | -11/Scrapyard | Discovered new exit (range 0) 1 | -11/Scrapyard | Entered Materials 312 | -10/Materials | Build established: Mutant 551 | -10/Materials | Core integrity fell below 50% 647 | -10/Materials | Discovered new exit (range 8) 720 | -10/Materials | Discovered new exit (range 13) 810 | -10/Materials | Discovered new exit (range 7) 1013 | -10/Materials | Discovered new exit (range 16) 1066 | -10/Materials | Entered another Materials area 1066 | -9/Materials | Evolved 2 slots: Propulsion x2 1218 | -9/Materials | Build established: Scavenger-Mutant 1795 | -9/Materials | Discovered new exit (range 13) 2006 | -9/Materials | Entered another Materials area 2006 | -8/Materials | Evolved 2 slots: Utility x2 2016 | -8/Materials | Discovered new exit (range 16) 2392 | -8/Materials | Core integrity fell below 50% 2394 | -8/Materials | Released all parts (3) 2425 | -8/Materials | Lost 10 parts (1p4n4u1w) 2461 | -8/Materials | Core integrity fell below 20% 2503 | -8/Materials | Lost 5 parts (1p1n2u1w) 2549 | -8/Materials | Discovered new exit (range 14) 2556 | -8/Materials | Destroyed by G-47 Trooper with Particle Gun Last Messages --------------- 02524_ G-47 Trooper knocked back. 02525_ O-16 Technician: "IFF HANDSHAKE FAILED. SECURING TERMINAL." 02528_ ALERT: Hostiles spotted, dispatching reinforcements to Terminal M010. 02529_ Matter Filter disabled. 02534_ Critical hit (Burn: +37). 02536_ Kicked G-47 Trooper out of the way. 02544_ Dropped Backup Laser I. 02545_ Acquired Great Maul. 02545_ Aluminum Leg destroyed. 02547_ Critical hit (Burn: +37). 02547_ Aluminum Leg destroyed. 02548_ A-02 Transporter destroyed. 02549_ EXIT=FOUND 02550_ Shock Rifle destroyed. 02550_ Acquired Imp. Light Armor Plating. 02553_ Dropped Backup Power I. 02554_ Acquired Ion Engine. 02555_ Aluminum Leg destroyed. Map ----- +----------------------------------------------------+ | ??????#"T!!! #?????# "T????????? | | ??????#"" ^ #?????####????????? | | ??????### ##########????????? | | ???????# = # ##????????? | | ???????# + ##????????? | | ???????# # ##????????? | | ???????####### #?????????????????? | | ?????????????# #?????????????????? | | ?????????#####+##+#?????????????????? | | ?????????#= #?????????????????? | | ?????????# %""""#?????????????????? | | ?????????# """""#?????????????????? | | ?????????# """""#?????????????????? | | ?????????#! """""#?????????????????? | | ?????????# """""#?????????????????? | | ?????????# """""#?????????????????? | | ?????????# ! %""""#?????????????????? | | ?????????# #?????????????????? | | ?????????#####+####?????????????????? | | ???????????# #??????????????????? | | ???????????#[ #??????????????????? | | ???????????# Tgg#??????????????????? | | ???????????# #??????????????????? | | ???????????# * #??????????????????? | | ????????##### ##??????????????????? | | ????????#]] @*! #???????????????????? | | ????????#]] *%* #???????????????????? | | ????????#== =** #???????????????????? | | ????????#== g #???????????????????? | | ????????#[[ gg#???????????????????? | | ????????#[[ #???????????????????? | | ????????##### #???????????????????? | | ????????????# #???????????????????? | | ????????????# #???????????????????? | | ????????????? #???????????????????? | | ????????????? #???????????????????? | | ????????????? < #???????????????????? | | ????????????? #???????????????????? | | ?????????????####???????????????????? | | ????????????????????????????????????? | | ????????????????????????????????????? | | ????????????????????????????????????? | | ????????????????????????????????????? | | ????????????????????????????????????? | | ????????????????????????????????????? | | ????????????????????????????????????? | | ????????????????????????????????????? | | ????????????????????????????????????? | | ????????????????????????????????????? | | ????????????????????????????????????? | +----------------------------------------------------+ Best States ------------- Heat Dissipation 45 Energy Generation 14 Energy Capacity 280 Matter Stores 300 Matter Capacity 300 Sight Range 16 Robot Scan Range 14 Terrain Scan Density 10 Armor Coverage 160 Core Shielding 20 Evasion (%) 55 Targeting Accuracy 5 Item Schematics ----------------- Plasma Cutter | -9/Materials | Scanalyzed Grenade Launcher | -9/Materials | Scanalyzed Cld. Ion Engine | -9/Materials | Scanalyzed Robot Schematics ------------------ None Fabricated ------------ Nothing Alien Tech Used ----------------- None Achievements -------------- None Challenges ------------ None Game ------ Seed CommSmallThruster Manual? 0 Play Time 00:27:51 Cumulative 57.2 hours Start 2024.04.12 @ 02:14:16 End 2024.04.12 @ 10:05:24 Sessions 2 Manual Loads 0 Difficulty Rogue Special Mode None Game No. 27 Rogue 27 Adventurer 0 Explorer 0 Win Type - Total 1 Types 1/0/0/0/0/0/0/0/0 Lore% 30 Gallery% 49 Achievement% 37 Wizard Run 0 Options --------- Layout 1 ASCII 0 Keyboard 0 Movement Mouse Keybinds 0 Fullscreen 2 Font 24/Smallcaps Map View 50x35 Zoom Use 0% Tactical HUD 1 Map Filters NONE Filters NONE Steam 1 RUN: dc9106c3-1305-4078-a829-c4d8a5ac2251